lending/lending_fUSD_20240603
["ID","MTS","AMOUNT","RATE_DAILY","PERIOD"]
[328432976,1717383071278,-500.0,0.00031232,4]
[328432977,1717383071287,-10336.33,0.00031232,4]
[328432978,1717383071296,-500.0,0.00031232,4]
[328432979,1717383071305,-500.0,0.00031232,4]
[328432980,1717383071314,-1388.53,0.00031232,4]
[328432981,1717383071323,-1836.73,0.00031232,4]
[328432982,1717383071332,-500.0,0.00031232,4]
[328432983,1717383071341,-575.3,0.00031232,4]
[328432984,1717383071350,-500.0,0.00031232,4]
[328432985,1717383071359,-500.0,0.00031232,4]
[328432986,1717383071367,-3790.28,0.00031232,4]
[328432987,1717383071379,-625.21,0.00031232,4]
[328432988,1717383071388,-433.904682,0.00031233,14]
[328432989,1717383071397,-150.0,0.00031236,7]
[328432990,1717383071406,-150.0,0.00031236,7]
[328432991,1717383071421,-164.57669979,0.00031236,7]
[328432992,1717383071437,-158.11388034,0.00031236,7]
[328432993,1717383071445,-150.0,0.00031236,7]
[328432994,1717383071456,-150.0,0.00031236,7]
[328432995,1717383071465,-172.55546987,0.00031236,7]
[328432996,1717383071475,-185.56939751,0.00031236,7]
[328432997,1717383071486,-170.05705046,0.00031236,7]
[328432998,1717383071496,-150.0,0.00031236,7]
[328432999,1717383071505,-150.0,0.00031236,7]
[328433000,1717383071514,-150.0,0.00031236,7]
[328433001,1717383071524,-150.0,0.00031236,7]
[328433002,1717383071533,-5146.80543118,0.00031236,30]
[328433003,1717383071543,-157.14383776,0.00031263,7]
[328433004,1717383071553,-7394.95,0.00031267,5]
[328433005,1717383071563,-155.0,0.000313,4]
[328433006,1717383071572,-150.0,0.000313,11]
[328433007,1717383071581,-166.66666666,0.00031319,7]
[328433008,1717383071590,-7465.3,0.00031322,5]
[328433009,1717383071599,-154.20396715,0.00031323,7]
[328433010,1717383071608,-155.22807238,0.00031331,4]
[328433011,1717383071618,-151.0,0.00031334,2]
[328433012,1717383071627,-250.49088,0.00031334,2]
[328433013,1717383071636,-150.0,0.00031365,7]
[328433014,1717383071645,-881.59,0.0003137,2]
[328433015,1717383071654,-431.74,0.0003137,2]
[328433016,1717383071663,-415.79,0.0003137,2]
[328433017,1717383071673,-157.46797257,0.0003137,30]
[328433018,1717383071682,-702.48597405,0.0003137,2]
[328433019,1717383071692,-175.41336899,0.00031375,2]
[328433020,1717383071701,-157.44420739,0.00031375,2]
[328433021,1717383071710,-2073.9536912,0.00031375,2]
[328433022,1717383071720,-7446.93,0.00031393,5]
[328433023,1717383071729,-150.0,0.00031394,7]
[328433024,1717383071738,-154.20396715,0.000314,7]
[328433025,1717383071747,-153.98,0.00031421,2]
[328433026,1717383071757,-150.0,0.0003144,7]
[328433027,1717383071766,-156.63232352,0.00031463,7]
[328433028,1717383071775,-400.0,0.0003147,2]
[328433029,1717383071784,-207.0,0.0003147,15]
[328433030,1717383071794,-10005.8210463,0.00031471,2]
[328433031,1717383071802,-2015.2147417,0.00031471,2]
[328433032,1717383071811,-56752.4005048,0.00031471,2]
[328433033,1717383071820,-207.0,0.0003148,15]
[328433034,1717383071829,-784.97137019,0.00031491,2]
[328433035,1717383071838,-1984.02200073,0.00031491,4]
[328433036,1717383071847,-304.81375676,0.00031491,2]
[328433037,1717383071857,-4012.4958684,0.00031492,2]
[328433038,1717383071866,-310.36720455,0.00031492,2]
[328433039,1717383071875,-1435075.66609727,0.00031493,5]
[328433040,1717383071884,-150.0,0.00031493,7]
[328433041,1717383071893,-500.0,0.00031506,4]
[328433042,1717383071902,-500.0,0.00031506,4]
[328433043,1717383071911,-500.0,0.00031506,4]
[328433044,1717383071920,-500.0,0.00031506,4]
[328433045,1717383071929,-500.0,0.00031506,4]
[328433046,1717383071938,-593.44707707,0.00031506,4]
[328433047,1717383071947,-500.0,0.00031506,4]
[328433048,1717383071956,-500.0,0.00031506,4]
[328433049,1717383071965,-500.0,0.00031506,4]
[328433050,1717383071974,-500.0,0.00031506,4]
[328433051,1717383071983,-500.0,0.00031506,4]
[328433052,1717383071992,-500.0,0.00031506,4]
[328433053,1717383072001,-614.49,0.00031506,4]
[328433054,1717383072010,-500.0,0.00031506,4]
[328433055,1717383072019,-500.0,0.00031506,4]
[328433056,1717383072028,-500.0,0.00031506,4]
[328433057,1717383072037,-500.0,0.00031506,4]
[328433058,1717383072046,-500.0,0.00031506,4]
[328433059,1717383072056,-500.0,0.00031506,4]
[328433060,1717383072065,-730.39,0.00031506,4]
[328433061,1717383072074,-596.12,0.00031506,4]
[328433062,1717383072246,-500.0,0.00031506,4]
[328433063,1717383072256,-500.0,0.00031506,4]
[328433064,1717383072265,-500.0,0.00031506,4]
[328433065,1717383072275,-500.0,0.00031506,4]
[328433066,1717383072284,-500.0,0.00031506,4]
[328433067,1717383072292,-500.0,0.00031506,4]
[328433068,1717383072302,-500.0,0.00031506,4]
[328433069,1717383072311,-936.75,0.00031506,4]
[328433070,1717383072319,-500.0,0.00031506,4]
[328433071,1717383072328,-1187.66,0.00031506,4]
[328433072,1717383072337,-500.0,0.00031506,4]
[328433073,1717383072346,-500.0,0.00031506,4]
[328433074,1717383072355,-1818.86,0.00031506,4]
[328433075,1717383072364,-500.0,0.00031506,4]
[328433076,1717383072373,-500.0,0.00031506,4]
[328433077,1717383072386,-500.0,0.00031506,4]
[328433078,1717383072395,-504.56951351,0.00031506,4]
[328433079,1717383072404,-500.0,0.00031506,4]
[328433080,1717383072412,-500.0,0.00031506,4]
[328433081,1717383072423,-500.0,0.00031506,4]
[328433082,1717383072432,-500.0,0.00031506,4]
[328433083,1717383072442,-500.0,0.00031506,4]
[328433084,1717383072454,-500.0,0.00031506,4]
[328433085,1717383072463,-294.83354983,0.00031506,4]
[328433086,1717383072473,-500.0,0.00031506,4]
[328433087,1717383072482,-500.0,0.00031506,4]
[328433088,1717383072491,-644.88,0.00031506,4]
[328433089,1717383072500,-631.89,0.00031506,4]
[328433090,1717383072508,-500.0,0.00031506,4]
[328433091,1717383072517,-500.0,0.00031506,4]
[328433092,1717383072526,-500.0,0.00031506,4]
[328433093,1717383072535,-500.0,0.00031506,4]
[328433094,1717383072545,-362.76286074,0.00031506,4]
[328433095,1717383072554,-500.0,0.00031506,4]
[328433096,1717383072562,-538.83,0.00031506,4]
[328433097,1717383072571,-500.0,0.00031506,4]
[328433098,1717383072580,-500.0,0.00031506,4]
[328433099,1717383072589,-500.0,0.00031506,4]
[328433100,1717383072599,-500.0,0.00031506,4]
[328433101,1717383072607,-500.0,0.00031506,4]
[328433102,1717383072616,-1871.37,0.00031506,4]
[328433103,1717383072626,-500.0,0.00031506,4]
[328433104,1717383072635,-500.0,0.00031506,4]
[328433105,1717383072644,-712.74,0.00031506,4]
[328433106,1717383072653,-613.85,0.00031506,4]
[328433107,1717383072662,-705.41,0.00031506,4]
[328433108,1717383072670,-500.0,0.00031506,4]
[328433109,1717383072679,-500.0,0.00031506,4]
[328433110,1717383072690,-500.0,0.00031506,4]
[328433111,1717383072699,-972.45,0.00031506,4]
[328433112,1717383072710,-1291.57,0.00031506,4]
[328433113,1717383072719,-500.0,0.00031506,4]
[328433114,1717383072729,-500.0,0.00031506,4]
[328433115,1717383072738,-514.76,0.00031506,4]
[328433116,1717383072747,-745.06,0.00031506,4]
[328433117,1717383072756,-295.65789524,0.00031506,4]
[328433118,1717383072766,-494.17832709,0.00031506,4]
[328433119,1717383072775,-500.0,0.00031506,4]
[328433120,1717383072785,-500.0,0.00031506,4]
[328433121,1717383072793,-501.54,0.00031506,4]
[328433122,1717383072802,-500.0,0.00031506,4]
[328433123,1717383072811,-500.0,0.00031506,4]
[328433124,1717383072820,-586.3,0.00031506,4]
[328433125,1717383072829,-500.0,0.00031506,4]
[328433126,1717383072838,-500.0,0.00031506,4]
[328433127,1717383072847,-500.0,0.00031506,4]
[328433128,1717383072856,-500.0,0.00031506,4]
[328433129,1717383072865,-705.88,0.00031506,4]
[328433130,1717383072874,-647.05,0.00031506,4]
[328433131,1717383072883,-500.0,0.00031506,4]
[328433132,1717383072892,-500.0,0.00031506,4]
[328433133,1717383072901,-500.0,0.00031506,4]
[328433134,1717383072910,-500.0,0.00031506,4]
[328433135,1717383072919,-503.06,0.00031506,4]
[328433136,1717383072928,-510.44,0.00031506,4]
[328433137,1717383072937,-500.0,0.00031506,4]
[328433138,1717383072946,-500.0,0.00031506,4]
[328433139,1717383072955,-553.73,0.00031506,4]
[328433140,1717383072964,-500.0,0.00031506,4]
[328433141,1717383072973,-825.33,0.00031506,4]
[328433142,1717383072982,-500.0,0.00031506,4]
[328433143,1717383072991,-633.07,0.00031506,4]
[328433144,1717383073000,-500.0,0.00031506,4]
[328433145,1717383073009,-500.0,0.00031506,4]
[328433146,1717383073018,-500.0,0.00031506,4]
[328433147,1717383073027,-500.0,0.00031506,4]
[328433148,1717383073036,-623.31,0.00031506,4]
[328433149,1717383073045,-500.0,0.00031506,4]
[328433150,1717383073054,-500.0,0.00031506,4]
[328433151,1717383073063,-500.0,0.00031506,4]
[328433152,1717383073072,-777.94,0.00031506,4]
[328433153,1717383073081,-500.0,0.00031506,4]
[328433154,1717383073091,-500.0,0.00031506,4]
[328433155,1717383073099,-500.0,0.00031506,4]
[328433156,1717383073108,-557.82,0.00031506,4]
[328433157,1717383073117,-500.0,0.00031506,4]
[328433158,1717383073126,-653.45,0.00031506,4]
[328433159,1717383073135,-500.0,0.00031506,4]
[328433160,1717383073144,-500.0,0.00031506,4]
[328433161,1717383073153,-500.0,0.00031506,4]
[328433162,1717383073162,-500.0,0.00031506,4]
[328433163,1717383073171,-500.0,0.00031506,4]
[328433164,1717383073180,-500.0,0.00031506,4]
[328433165,1717383073189,-500.0,0.00031506,4]
[328433166,1717383073198,-500.0,0.00031506,4]
[328433167,1717383073209,-500.0,0.00031506,4]
[328433168,1717383073218,-1208.65,0.00031506,4]
[328433169,1717383073226,-500.0,0.00031506,4]
[328433170,1717383073235,-500.0,0.00031506,4]
[328433171,1717383073244,-500.0,0.00031506,4]
[328433172,1717383073253,-500.0,0.00031506,4]
[328433173,1717383073262,-588.70425663,0.00031506,4]
[328433174,1717383073271,-500.0,0.00031506,4]
[328433175,1717383073281,-500.0,0.00031506,4]
[328433176,1717383073290,-500.0,0.00031506,4]
[328433177,1717383073299,-612.73,0.00031506,4]
[328433178,1717383073308,-500.0,0.00031506,4]
[328433179,1717383073317,-500.0,0.00031506,2]
[328433180,1717383073326,-500.0,0.00031506,4]
[328433181,1717383073336,-500.0,0.00031506,4]
[328433182,1717383073345,-500.0,0.00031506,4]
[328433183,1717383073354,-500.0,0.00031506,4]
[328433184,1717383073362,-500.0,0.00031506,4]
[328433185,1717383073371,-500.0,0.00031506,4]
[328433186,1717383073386,-858.8,0.00031506,4]
[328433187,1717383073396,-529.77,0.00031506,4]
[328433188,1717383073406,-500.0,0.00031506,4]
[328433189,1717383073416,-1286.79,0.00031506,4]
[328433190,1717383073430,-932.87,0.00031506,4]
[328433191,1717383073440,-586.22,0.00031506,4]
[328433192,1717383073450,-530.97612189,0.00031506,4]
[328433193,1717383073462,-500.0,0.00031506,4]
[328433194,1717383073472,-631.19472137,0.00031506,4]
[328433195,1717383073482,-500.0,0.00031506,4]
[328433196,1717383073491,-509.18,0.00031506,4]
[328433197,1717383073501,-4478.3,0.00031506,4]
[328433198,1717383073511,-500.0,0.00031506,4]
[328433199,1717383073520,-500.0,0.00031506,4]
[328433200,1717383073530,-500.0,0.00031506,4]
[328433201,1717383073539,-500.0,0.00031506,4]
[328433202,1717383073548,-1170.51,0.00031506,4]
[328433203,1717383073557,-1037.41,0.00031506,4]
[328433204,1717383073566,-1019.2,0.00031506,4]
[328433205,1717383073576,-34960.64,0.00031506,4]
[328433206,1717383073586,-726.35,0.00031506,4]
[328433207,1717383073595,-1375.28,0.00031506,4]
[328433208,1717383073604,-1236.68,0.00031506,4]
[328433209,1717383073614,-1209.41,0.00031506,4]
[328433210,1717383073626,-749.6,0.00031506,4]
[328433211,1717383073636,-500.0,0.00031506,4]
[328433212,1717383073646,-500.0,0.00031506,4]
[328433213,1717383073656,-14117.3,0.00031506,4]
[328433214,1717383073665,-500.0,0.00031506,4]
[328433215,1717383073674,-500.0,0.00031506,4]
[328433216,1717383073682,-500.0,0.00031506,4]
[328433217,1717383073691,-4225.42,0.00031506,4]
[328433218,1717383073700,-500.0,0.00031506,4]
[328433219,1717383073711,-500.0,0.00031506,4]
[328433220,1717383073719,-2343.51,0.00031506,4]
[328433221,1717383073728,-500.0,0.00031506,4]
[328433222,1717383073738,-500.0,0.00031506,4]
[328433223,1717383073747,-1874.55,0.00031506,4]
[328433224,1717383073756,-560.94149594,0.00031506,4]
[328433225,1717383073765,-500.0,0.00031506,4]
[328433226,1717383073774,-1355.02,0.00031506,4]
[328433227,1717383073783,-500.0,0.00031506,4]
[328433228,1717383073792,-500.0,0.00031506,4]
[328433229,1717383073801,-500.0,0.00031506,4]
[328433230,1717383073811,-500.0,0.00031506,4]
[328433231,1717383073819,-838.43,0.00031506,4]
[328433232,1717383073828,-500.0,0.00031506,4]
[328433233,1717383073837,-500.0,0.00031506,4]
[328433234,1717383073846,-1859.23,0.00031506,4]
[328433235,1717383073855,-500.0,0.00031506,4]
[328433236,1717383073864,-500.0,0.00031506,4]
[328433237,1717383073873,-467.2946349,0.00031506,4]
[328433238,1717383073882,-425.93569639,0.00031506,4]
[328433239,1717383073891,-500.0,0.00031506,4]
[328433240,1717383073900,-968.14,0.00031506,4]
[328433241,1717383073909,-1216.93,0.00031506,4]
[328433242,1717383073918,-500.0,0.00031506,4]
[328433243,1717383073927,-875.3,0.00031506,4]
[328433244,1717383073936,-732.47,0.00031506,4]
[328433245,1717383073944,-814.06,0.00031506,4]
[328433246,1717383073953,-500.0,0.00031506,4]
[328433247,1717383073963,-500.0,0.00031506,4]
[328433248,1717383073972,-500.0,0.00031506,4]
[328433249,1717383073981,-500.0,0.00031506,4]
[328433250,1717383073991,-591.35,0.00031506,4]
[328433251,1717383074000,-500.0,0.00031506,4]
[328433252,1717383074009,-3062.26,0.00031506,4]
[328433253,1717383074018,-500.0,0.00031506,4]
[328433254,1717383074027,-695.63,0.00031506,4]
[328433255,1717383074036,-477.13462857,0.00031506,4]
[328433256,1717383074045,-2412.97,0.00031506,4]
[328433257,1717383074054,-3534.67,0.00031506,4]
[328433258,1717383074063,-2480.71,0.00031506,4]
[328433259,1717383074072,-500.0,0.00031506,4]
[328433260,1717383074081,-800.8,0.00031506,4]
[328433261,1717383074090,-9189.46,0.00031506,4]
[328433262,1717383074099,-500.0,0.00031506,4]
[328433263,1717383074108,-2150.22,0.00031506,4]
[328433264,1717383074117,-764.01,0.00031506,4]
[328433265,1717383074126,-500.0,0.00031506,4]
[328433266,1717383074135,-1982.04,0.00031506,4]
[328433267,1717383074144,-4186.6,0.00031506,4]
[328433268,1717383074154,-7160.23,0.00031506,4]
[328433269,1717383074163,-1583.32,0.00031506,4]
[328433270,1717383074172,-3511.0,0.00031506,4]
[328433271,1717383074181,-573.3,0.00031506,4]
[328433272,1717383074190,-500.0,0.00031506,4]
[328433273,1717383074199,-500.0,0.00031506,4]
[328433274,1717383074210,-1963.1,0.00031506,4]
[328433275,1717383074219,-500.0,0.00031506,4]
[328433276,1717383074227,-656.97,0.00031506,4]
[328433277,1717383074236,-500.0,0.00031506,4]
[328433278,1717383074245,-527.74,0.00031506,4]
[328433279,1717383074254,-500.0,0.00031506,4]
[328433280,1717383074263,-500.0,0.00031506,4]
[328433281,1717383074273,-500.0,0.00031506,4]
[328433282,1717383074282,-622.95,0.00031506,4]
[328433283,1717383074291,-500.0,0.00031506,4]
[328433284,1717383074299,-500.0,0.00031506,4]
[328433285,1717383074308,-2897.65,0.00031506,4]
[328433286,1717383074317,-1723.41,0.00031506,4]
[328433287,1717383074326,-1703.68,0.00031506,4]
[328433288,1717383074336,-500.0,0.00031506,4]
[328433289,1717383074344,-1487.14,0.00031506,4]
[328433290,1717383074354,-500.0,0.00031506,4]
[328433291,1717383074364,-500.0,0.00031506,4]
[328433292,1717383074374,-500.0,0.00031506,4]
[328433293,1717383074386,-1930.1,0.00031506,4]
[328433294,1717383074395,-500.0,0.00031506,4]
[328433295,1717383074404,-1201.29,0.00031506,4]
[328433296,1717383074414,-2217.54,0.00031506,4]
[328433297,1717383074424,-1608.51,0.00031506,4]
[328433298,1717383074434,-500.0,0.00031506,4]
[328433299,1717383074444,-500.0,0.00031506,4]
[328433300,1717383074457,-500.0,0.00031506,4]
[328433301,1717383074467,-544.22695733,0.00031506,4]
[328433302,1717383074476,-13207.0,0.00031506,4]
[328433303,1717383074485,-500.0,0.00031506,4]
[328433304,1717383074493,-546.85,0.00031506,4]
[328433305,1717383074503,-500.0,0.00031506,4]
[328433306,1717383074512,-1279.96,0.00031506,4]
[328433307,1717383074521,-4969.37,0.00031506,4]
[328433308,1717383074530,-2760.93,0.00031506,4]
[328433309,1717383074539,-1423.72,0.00031506,4]
[328433310,1717383074548,-1024.88,0.00031506,4]
[328433311,1717383074557,-1072.92,0.00031506,4]
[328433312,1717383074565,-2917.33,0.00031506,4]
[328433313,1717383074575,-500.0,0.00031506,4]
[328433314,1717383074584,-679.51,0.00031506,4]
[328433315,1717383074592,-2436.39,0.00031506,4]
[328433316,1717383074602,-500.0,0.00031506,4]
[328433317,1717383074611,-500.0,0.00031506,4]
[328433318,1717383074620,-1201.12,0.00031506,4]
[328433319,1717383074629,-2922.52,0.00031506,4]
[328433320,1717383074638,-1894.74,0.00031506,4]
[328433321,1717383074647,-4358.46,0.00031506,4]
[328433322,1717383074656,-500.0,0.00031506,4]
[328433323,1717383074665,-2223.58,0.00031506,4]
[328433324,1717383074674,-500.0,0.00031506,4]
[328433325,1717383074683,-988.38,0.00031506,4]
[328433326,1717383074692,-500.0,0.00031506,4]
[328433327,1717383074701,-500.0,0.00031506,4]
[328433328,1717383074712,-1505.63,0.00031506,4]
[328433329,1717383074722,-500.0,0.00031506,4]
[328433330,1717383074731,-500.0,0.00031506,4]
[328433331,1717383074740,-788.0,0.00031506,4]
[328433332,1717383074750,-500.0,0.00031506,4]
[328433333,1717383074759,-1511.7,0.00031506,4]
[328433334,1717383074769,-2240.68,0.00031506,4]
[328433335,1717383074778,-500.0,0.00031506,4]
[328433336,1717383074787,-9500.56,0.00031506,4]
[328433337,1717383074796,-948.87,0.00031506,4]
[328433338,1717383074805,-1823.94,0.00031506,4]
[328433339,1717383074815,-500.0,0.00031506,4]
[328433340,1717383074823,-500.0,0.00031506,4]
[328433341,1717383074832,-634.58,0.00031506,4]
[328433342,1717383074841,-2799.18,0.00031506,4]
[328433343,1717383074851,-1694.14,0.00031506,4]
[328433344,1717383074860,-500.0,0.00031506,4]
[328433345,1717383074869,-500.0,0.00031506,4]
[328433346,1717383074879,-2135.27,0.00031506,4]
[328433347,1717383074888,-3787.22,0.00031506,4]
[328433348,1717383074897,-577.03078285,0.00031506,4]
[328433349,1717383074906,-1334.16,0.00031506,4]
[328433350,1717383074915,-500.0,0.00031506,4]
[328433351,1717383074924,-775.78,0.00031506,4]
[328433352,1717383074933,-1375.03,0.00031506,4]
[328433353,1717383074942,-1464.67,0.00031506,4]
[328433354,1717383074951,-500.0,0.00031506,4]
[328433355,1717383074962,-1131.19,0.00031506,4]
[328433356,1717383074971,-500.0,0.00031506,4]
[328433357,1717383074980,-839.92,0.00031506,4]
[328433358,1717383074990,-500.0,0.00031506,4]
[328433359,1717383074999,-713.57,0.00031506,4]
[328433360,1717383075009,-1716.06,0.00031506,4]
[328433361,1717383075018,-2373.26,0.00031506,4]
[328433362,1717383075027,-2354.41,0.00031506,4]
[328433363,1717383075036,-660.76,0.00031506,4]
[328433364,1717383075045,-3082.36,0.00031506,4]
[328433365,1717383075054,-500.0,0.00031506,4]
[328433366,1717383075063,-500.0,0.00031506,4]
[328433367,1717383075072,-527.38,0.00031506,4]
[328433368,1717383075081,-500.0,0.00031506,4]
[328433369,1717383075090,-500.0,0.00031506,4]
[328433370,1717383075099,-500.0,0.00031506,4]
[328433371,1717383075108,-500.0,0.00031506,4]
[328433372,1717383075117,-1592.2,0.00031506,4]
[328433373,1717383075126,-3681.53,0.00031506,4]
[328433374,1717383075135,-3723.56,0.00031506,4]
[328433375,1717383075144,-1351.86,0.00031506,4]
[328433376,1717383075153,-1259.91,0.00031506,4]
[328433377,1717383075161,-500.0,0.00031506,4]
[328433378,1717383075169,-1013.01,0.00031506,4]
[328433379,1717383075178,-500.0,0.00031506,4]
[328433380,1717383075186,-500.0,0.00031506,4]
[328433381,1717383075195,-5548.27,0.00031506,4]
[328433382,1717383075203,-500.0,0.00031506,4]
[328433383,1717383075213,-500.0,0.00031506,4]
[328433384,1717383075222,-10336.33,0.00031506,4]
[328433385,1717383075230,-317.30934564,0.00031506,4]
[328433386,1717383075238,-500.0,0.00031506,4]
[328433387,1717383075247,-1388.53,0.00031506,4]
[328433388,1717383075256,-1836.73,0.00031506,4]
[328433389,1717383075264,-500.0,0.00031506,4]
[328433390,1717383075272,-575.3,0.00031506,4]
[328433391,1717383075280,-500.0,0.00031506,4]
[328433392,1717383075289,-500.0,0.00031506,4]
[328433393,1717383075297,-3790.28,0.00031506,4]
[328433394,1717383075306,-625.21,0.00031506,4]
[328433395,1717383075314,-157.14383776,0.00031513,7]
[328433396,1717383075322,-200.0,0.00031519,120]
[328433397,1717383075331,-8901.0,0.00031535,5]
[328433398,1717383075339,-1252.0,0.00031535,5]
[328433399,1717383075348,-299.59015806,0.00031543,2]
[328433400,1717383075356,-12671.28322228,0.0003155,2]
[328433401,1717383075365,-7271.76410476,0.0003155,2]
[328433402,1717383075519,-150.0,0.00031552,7]
[328433403,1717383075545,-157.62194437,0.00031555,7]
[328433404,1717383075554,-170.4830861,0.00031574,7]
[328433405,1717383075561,-154.20396715,0.00031585,7]
[328433406,1717383075570,-157.46797257,0.00031589,30]
[328433407,1717383075578,-1246.01,0.000316,2]
[328433408,1717383075586,-1510.0,0.000316,2]
[328433409,1717383075594,-150.0,0.000316,7]
[328433410,1717383075603,-150.0,0.000316,7]
[328433411,1717383075612,-150.0,0.00031622,7]
[328433412,1717383075620,-150.0,0.00031622,7]
[328433413,1717383075628,-535.62,0.00031644,2]
[328433414,1717383075636,-421.43,0.00031644,2]
[328433415,1717383075645,-525.57,0.00031644,2]
[328433416,1717383075652,-525.57,0.00031644,2]
[328433417,1717383075661,-525.57,0.00031644,2]
[328433418,1717383075670,-525.57,0.00031644,2]
[328433419,1717383075679,-525.57,0.00031644,2]
[328433420,1717383075687,-525.57,0.00031644,2]
[328433421,1717383075695,-525.57,0.00031644,2]
[328433422,1717383075704,-621.23,0.00031644,2]
[328433423,1717383075714,-150.0,0.00031645,7]
[328433424,1717383075723,-150.0,0.0003167,7]
[328433425,1717383075732,-168.8832375,0.00031693,7]
[328433426,1717383075740,-150.0,0.0003171,7]
[328433427,1717383075749,-150.0,0.0003175,7]
[328433428,1717383075757,-5457.33133566,0.00031752,15]
[328433429,1717383075767,-2539.85850077,0.00031752,15]
[328433430,1717383075776,-170.4830861,0.00031771,7]
[328433431,1717383075787,-204.748343,0.00031779,120]
[328433432,1717383075797,-500.0,0.0003178,4]
[328433433,1717383075806,-500.0,0.0003178,4]
[328433434,1717383075816,-500.0,0.0003178,4]
[328433435,1717383075825,-500.0,0.0003178,4]
[328433436,1717383075835,-556.24511706,0.0003178,4]
[328433437,1717383075843,-500.0,0.0003178,4]
[328433438,1717383075852,-500.0,0.0003178,4]
[328433439,1717383075861,-500.0,0.0003178,4]
[328433440,1717383075870,-500.0,0.0003178,4]
[328433441,1717383075880,-500.0,0.0003178,4]
[328433442,1717383075889,-614.49,0.0003178,4]
[328433443,1717383075899,-500.0,0.0003178,4]
[328433444,1717383075907,-500.0,0.0003178,4]
[328433445,1717383075917,-622.46185778,0.0003178,4]
[328433446,1717383075926,-500.0,0.0003178,4]
[328433447,1717383075935,-500.0,0.0003178,4]
[328433448,1717383075944,-599.5533264,0.0003178,4]
[328433449,1717383075952,-730.39,0.0003178,4]
[328433450,1717383075961,-596.12,0.0003178,4]
[328433451,1717383075971,-500.0,0.0003178,4]
[328433452,1717383075981,-500.0,0.0003178,4]
[328433453,1717383075991,-500.0,0.0003178,4]
[328433454,1717383076000,-500.0,0.0003178,4]
[328433455,1717383076009,-500.0,0.0003178,4]
[328433456,1717383076018,-556.65773309,0.0003178,4]
[328433457,1717383076027,-500.0,0.0003178,4]
[328433458,1717383076036,-936.75,0.0003178,4]
[328433459,1717383076046,-500.0,0.0003178,4]
[328433460,1717383076055,-1187.66,0.0003178,4]
[328433461,1717383076064,-500.0,0.0003178,4]
[328433462,1717383076073,-500.0,0.0003178,4]
[328433463,1717383076082,-1818.86,0.0003178,4]
[328433464,1717383076091,-500.0,0.0003178,4]
[328433465,1717383076100,-500.0,0.0003178,4]
[328433466,1717383076109,-500.0,0.0003178,4]
[328433467,1717383076118,-500.0,0.0003178,4]
[328433468,1717383076128,-500.0,0.0003178,4]
[328433469,1717383076137,-500.0,0.0003178,4]
[328433470,1717383076145,-500.0,0.0003178,4]
[328433471,1717383076155,-500.0,0.0003178,4]
[328433472,1717383076163,-500.0,0.0003178,4]
[328433473,1717383076172,-500.0,0.0003178,4]
[328433474,1717383076181,-500.0,0.0003178,4]
[328433475,1717383076190,-644.88,0.0003178,4]